[Event "CZE-ch U10 Open 2023"]
[Site "Teplice"]
[Date "2023.03.15"]
[Round "6.1"]
[White "Filindash, Nikita"]
[Black "Kroulik, Stepan"]
[Result "1-0"]
[ECO "D85"]
[WhiteElo "2021"]
[BlackElo "1228"]
[Annotator "TA"]
[PlyCount "73"]
[EventDate "2023.03.09"]
[EventType "swiss"]
[EventCountry "CZE"]
[SourceTitle "playchess.com"]
[Source "ChessBase"]
[SourceQuality "1"]
[TimeControl "40/5400+30:1800+30"]

{[%evp 27,73,-8,-7,-7,-7,-6,2,8,137,54,385,390,386,327,635,636,610,570,560,525,540,524,479,317,638,643,641,643,640,638,627,626,627,605,696,603,585,577,888,892,1169,1196,2278,1047,6131,6119,4910,549]} 1. d4 {[%emt 0:00:02]} Nf6 {[%emt 0:00:08]} 2. c4 {[%emt 0:00:10]} g6 {[%emt 0:00:12]} 3. Nc3 {[%emt 0:00:08]} d5 {[%emt 0:00:12]} 4. cxd5 {[%emt 0:00:09]} Nxd5 {[%emt 0:00:08]} 5. e4 {[%emt 0:00:06]} Nxc3 {[%emt 0:00:32]} 6. bxc3 {[%emt 0:00:02]} Bg7 {[%emt 0:00:25]} 7. Nf3 {[%emt 0:00:08]} c5 {[%emt 0:00:19]} 8. Be3 {[%emt 0:00:10]} Qa5 {[%emt 0:00:55]} 9. Qd2 {[%emt 0:00:11]} Nc6 {[%emt 0:00:34][%cal Bb8c6,Bc6b4,Bb4a6][%mdl 32]} 10. Rc1 {[%emt 0:06:11]} cxd4 {[%emt 0:01:18]} 11. cxd4 {[%emt 0:00:05]} Qxd2+ {[%emt 0:00:11]} 12. Kxd2 {[%emt 0:00:22]} O-O {[%emt 0:00:50]} 13. d5 {[%emt 0:00:28]} Rd8 {[%emt 0:00:15]} 14. Ke1 {[%emt 0:01:59]} Nb4 {[%emt 0:01:25]} 15. Bd2 {[%emt 0:02:22] D85: Exchange Grünfeld: Unusual White 7th moves and lines with 7 Nf3.} Na6 {[%emt 0:01:58]} 16. Bb5 {[%emt 0:15:13]} f5 {[%emt 0:07:36]} 17. e5 {[%emt 0:04:30] [#] The position is equal.} b6 $146 {[%emt 0:07:24]} (17... Bd7 $11 18. a4 Be8) ({Predecessor:} 17... Rxd5 18. Bc4 Be6 19. Be3 Rc8 20. Nd4 Rxc4 21. Rxc4 Rxe5 22. Nxe6 Rxe6 23. Kd2 b6 {½-½ Raicevic,V (2460)-Popovic,P (2525) YUG-chT Budva 2002}) 18. Bg5 {[%emt 0:03:12] White is much more active.} ({White should try} 18. Rxc8 $1 $16 Raxc8 19. Bxa6) 18... Kf7 $2 {[%emt 0:10:51][%mdl 8192] [#]} ({Black should play} 18... Bb7 $1 $14) 19. d6 $1 $18 {[%emt 0:30:18][%mdl 512]} Bf8 {[%emt 0:02:28]} 20. Bc4+ {[%emt 0:04:30]} Be6 $2 {[%emt 0:07:44]} (20... Ke8 21. Bb5+ Kf7 22. e6+ Bxe6 23. Bxa6 Rxd6) 21. Bxa6 {[%emt 0:00:08]} h6 {[%emt 0:01:01]} 22. Bxe7 {[%emt 0:01:56]} Bxe7 {[%emt 0:00:23]} 23. Rc7 {[%emt 0:00:25][%mdl 64] Pin} Rd7 {[%emt 0:00:44]} 24. Rxd7 {[%emt 0:00:18]} Bxd7 {[%emt 0:00:12]} 25. Bc4+ {[%emt 0:00:26]} Be6 $2 {[%emt 0:01:00]} (25... Ke8 26. Kd2 Rc8) 26. Bxe6+ {[%emt 0:00:11] White is clearly winning.} Kxe6 {[%emt 0:00:11]} 27. dxe7 {[%emt 0:00:07]} Kxe7 {[%emt 0:00:08][%mdl 4096] Endgame KRN-KR} 28. Kd2 {[%emt 0:00:34]} Rd8+ {[%emt 0:00:23]} 29. Kc3 {[%emt 0:00:26]} Rd5 {[%emt 0:00:46]} 30. Nd4 {[%emt 0:00:36]} a6 {[%emt 0:01:11]} 31. Re1 {[%emt 0:00:23]} Rc5+ {[%emt 0:00:37]} 32. Kd3 {[%emt 0:00:31]} Rd5 {[%emt 0:00:42]} 33. Rc1 {[%emt 0:00:58]} Kd7 {[%emt 0:00:51]} 34. f4 {[%emt 0:00:36]} Ra5 {[%emt 0:00:31]} 35. Rc2 {[%emt 0:00:29] Strongly threatening e6+.} h5 {[%emt 0:01:35]} 36. e6+ {[%emt 0:04:33]} Ke8 {[%emt 0:00:22]} 37. Rc8+ {[%emt 0:00:10] Black did not feel at home in the position after the opening.   Weighted Error Value: White=0.30/Black=1.04} 1-0

[Event "CZE-ch U10 Open 2023"]
[Site "Teplice"]
[Date "2023.03.15"]
[Round "6.2"]
[White "Kozusnik, Jan"]
[Black "Lutskiy, Mikhail"]
[Result "1-0"]
[ECO "C11"]
[WhiteElo "1286"]
[BlackElo "1150"]
[Annotator "NA RC COMBH"]
[PlyCount "111"]
[EventDate "2023.03.09"]
[EventType "swiss"]
[EventCountry "CZE"]
[SourceTitle "playchess.com"]
[Source "ChessBase"]
[SourceQuality "1"]
[TimeControl "40/5400+30:1800+30"]

1. e4 {[%emt 0:00:04]} e6 {[%emt 0:00:10]} 2. d4 {[%emt 0:00:11]} d5 {[%emt 0:00:20]} 3. Nc3 {[%emt 0:00:26]} Nf6 {[%emt 0:00:30]} 4. Bd3 {[%emt 0:01:32]} c5 {[%emt 0:00:35]} 5. dxc5 {[%emt 0:02:19]} Bxc5 {[%emt 0:00:42]} 6. Nf3 {[%emt 0:00:55]} O-O {[%emt 0:00:09]} 7. O-O {[%emt 0:00:12]} Nc6 {[%emt 0:00:43]} 8. Bg5 {[%emt 0:00:31]} h6 {[%emt 0:01:06]} 9. Bh4 {[%emt 0:00:22]} Be7 {[%emt 0:00:23]} 10. exd5 {[%emt 0:04:09]} Nxd5 {[%emt 0:01:46]} 11. Bxe7 {[%emt 0:01:55]} Ncxe7 {[%emt 0:01:17]} 12. Ne4 {[%emt 0:01:29]} Nf4 {[%emt 0:01:02]} 13. Qd2 {[%emt 0:05:40]} Nxd3 {[%emt 0:00:54]} 14. Qxd3 {[%emt 0:00:18]} Qb6 {[%emt 0:00:32]} 15. Qd6 {[%emt 0:01:26]} Nd5 {[%emt 0:01:33]} 16. Qxb6 {[%emt 0:00:40]} Nxb6 {[%emt 0:00:11]} 17. Nd6 {[%emt 0:00:38]} Rb8 {[%emt 0:01:10]} 18. Ne5 {[%emt 0:01:59]} Bd7 {[%emt 0:01:11]} 19. Nxd7 {[%emt 0:00:27]} Nxd7 {[%emt 0:00:21]} 20. Rad1 {[%emt 0:00:37]} Nb6 {[%emt 0:01:43]} 21. c4 {[%emt 0:01:32]} a6 {[%emt 0:00:50]} 22. Rd2 {[%emt 0:01:09]} Rfd8 {[%emt 0:00:47]} 23. Rfd1 {[%emt 0:00:42]} Rd7 {[%emt 0:03:00]} 24. b3 {[%emt 0:06:40]} Rbd8 {[%emt 0:04:48]} 25. Ne4 {[%emt 0:01:17]} Rxd2 {[%emt 0:01:22]} 26. Rxd2 {[%emt 0:00:08]} Rxd2 {[%emt 0:00:05]} 27. Nxd2 {[%emt 0:00:05]} Kf8 {[%emt 0:00:12]} 28. Ne4 {[%emt 0:00:41]} Nd7 {[%emt 0:00:48]} 29. Kf1 {[%emt 0:03:32]} Ke7 {[%emt 0:01:38]} 30. Ke2 {[%emt 0:00:42]} f5 {[%emt 0:00:10]} 31. Nd2 {[%emt 0:01:41]} Kd6 {[%emt 0:00:46]} 32. Kd3 {[%emt 0:00:30]} Ne5+ {[%emt 0:00:37]} 33. Kd4 {[%emt 0:04:30]} g5 {[%emt 0:01:07]} 34. c5+ {[%emt 0:00:22]} Kc6 {[%emt 0:00:02]} 35. Kxe5 {[%emt 0:00:17]} Kxc5 36. a3 {[%emt 0:00:36]} f4 {[%emt 0:00:22]} 37. f3 {[%emt 0:00:38]} a5 {[%emt 0:00:16]} 38. Ne4+ {[%emt 0:01:02]} Kb5 {[%emt 0:00:20]} 39. Nd6+ {[%emt 0:01:07]} Kc6 {[%emt 0:00:09]} 40. Nc4 {[%emt 0:00:31]} Kb5 {[%emt 0:00:38]} 41. Kxe6 {[%emt 0:30:29]} Ka6 {[%emt 0:30:44]} 42. Kd6 {[%emt 0:00:51]} b5 {[%emt 0:00:12]} 43. Ne5 {[%emt 0:00:52]} h5 {[%emt 0:00:27]} 44. g3 {[%emt 0:00:47]} fxg3 {[%emt 0:00:14]} 45. hxg3 {[%emt 0:00:06]} h4 {[%emt 0:00:26]} 46. gxh4 {[%emt 0:00:11]} gxh4 {[%emt 0:00:07]} 47. f4 {[%emt 0:00:12]} h3 {[%emt 0:00:08]} 48. Nf3 {[%emt 0:00:03]} Kb6 {[%emt 0:00:14]} 49. f5 {[%emt 0:00:09]} Kb7 {[%emt 0:00:16]} 50. f6 {[%emt 0:00:10]} b4 {[%emt 0:00:23]} 51. axb4 {[%emt 0:00:17]} axb4 {[%emt 0:00:23]} 52. f7 {[%emt 0:00:07]} Kb6 {[%emt 0:00:10]} 53. f8=Q {[%emt 0:00:11]} Kb5 {[%emt 0:00:21]} 54. Qb8+ {[%emt 0:00:21]} Ka5 {[%emt 0:00:16]} 55. Kc5 {[%emt 0:00:25]} Ka6 {[%emt 0:00:16]} 56. Qb6# 1-0

[Event "CZE-ch U10 Open 2023"]
[Site "Teplice"]
[Date "2023.03.15"]
[Round "6.3"]
[White "Moravec, Rene"]
[Black "Kolar, Edvard"]
[Result "0-1"]
[ECO "C01"]
[WhiteElo "1216"]
[BlackElo "1518"]
[Annotator "NA RC COMBH"]
[PlyCount "53"]
[EventDate "2023.03.09"]
[EventType "swiss"]
[EventCountry "CZE"]
[SourceTitle "playchess.com"]
[Source "ChessBase"]
[SourceQuality "1"]
[TimeControl "40/5400+30:1800+30"]

1. e4 {[%emt 0:00:11]} e6 {[%emt 0:00:10]} 2. d4 {[%emt 0:00:12]} d5 {[%emt 0:00:04]} 3. exd5 {[%emt 0:00:37]} exd5 {[%emt 0:00:09]} 4. Nf3 {[%emt 0:00:24]} Nf6 {[%emt 0:00:09]} 5. Bg5 {[%emt 0:00:40]} Be7 {[%emt 0:02:59]} 6. Bd3 {[%emt 0:00:13]} Be6 {[%emt 0:02:12]} 7. Nbd2 {[%emt 0:00:21]} Nbd7 {[%emt 0:00:39]} 8. c3 {[%emt 0:00:25]} c6 {[%emt 0:01:09]} 9. Qc2 {[%emt 0:00:15]} Qb6 {[%emt 0:02:24]} 10. O-O {[%emt 0:00:19]} O-O-O {[%emt 0:01:02]} 11. a4 {[%emt 0:00:20]} h6 {[%emt 0:00:52]} 12. Bxf6 {[%emt 0:00:36]} Bxf6 {[%emt 0:01:46]} 13. a5 {[%emt 0:00:15]} Qc7 {[%emt 0:01:19]} 14. b4 {[%emt 0:00:39]} Qd6 {[%emt 0:03:52]} 15. Rab1 {[%emt 0:00:43]} g5 {[%emt 0:01:09]} 16. b5 c5 17. b6 {[%emt 0:01:32]} a6 {[%emt 0:01:13]} 18. c4 {[%emt 0:00:38]} Kb8 {[%emt 0:05:26]} 19. Rfc1 {[%emt 0:02:56]} Rc8 {[%emt 0:02:22]} 20. Nb3 {[%emt 0:00:37]} cxd4 {[%emt 0:05:13]} 21. Nbxd4 {[%emt 0:02:05]} Bxd4 {[%emt 0:01:34]} 22. Nxd4 {[%emt 0:01:11]} dxc4 {[%emt 0:00:45]} 23. Nxe6 cxd3 {[%emt 0:01:10]} 24. Qd2 {[%emt 0:01:54]} fxe6 {[%emt 0:01:39]} 25. g3 {[%emt 0:00:26]} Ne5 {[%emt 0:01:04]} 26. Rxc8+ {[%emt 0:02:51]} Rxc8 {[%emt 0:00:24]} 27. f4 {[%emt 0:02:32]} 0-1

[Event "CZE-ch U10 Open 2023"]
[Site "Teplice"]
[Date "2023.03.15"]
[Round "6.4"]
[White "Skoloud, Josef"]
[Black "Trejbal, Jindrich"]
[Result "1/2-1/2"]
[ECO "C35"]
[WhiteElo "1090"]
[BlackElo "1937"]
[Annotator "TA"]
[PlyCount "99"]
[EventDate "2023.03.09"]
[EventType "swiss"]
[EventCountry "CZE"]
[SourceTitle "playchess.com"]
[Source "ChessBase"]
[SourceQuality "1"]
[TimeControl "40/5400+30:1800+30"]

{[%evp 9,99,-130,-121,-175,-175,-171,-179,-168,-138,-222,-151,-186,-155,-217,-132,-143,-130,-277,-288,-266,-251,-369,-262,-324,-320,-317,-324,-280,-199,-314,-217,-565,-158,-146,-125,-122,-127,-161,-171,-435,-443,-409,-379,-396,-330,-327,-81,-66,0,-43,-43,-35,-48,-43,3,9,71,-31,143,139,133,140,140,74,60,-79,-79,-89,-89,-95,-90,-212,-214,-214,-214,-213,-141,-208,-164,-187,-141,-202,-141,-141,-104,-104,-86,-86,-86,-86,-86,-86]} 1. e4 {[%emt 0:00:02]} e5 {[%emt 0:00:10]} 2. f4 {[%emt 0:00:04]} exf4 {[%emt 0:00:22]} 3. Nf3 {[%emt 0:00:05]} Be7 {[%emt 0:00:27]} 4. g3 {[%emt 0:01:46]} fxg3 {[%emt 0:00:42]} 5. hxg3 {[%emt 0:00:19]} Nf6 {[%emt 0:01:02] [#]} 6. e5 $146 {[%emt 0:00:56] C35: King's Gambit Accepted: 3 Nf3 Be7.} (6. Nc3 $17) ({Predecessor:} 6. Nc3 Bb4 7. Bc4 O-O 8. Qe2 Bxc3 9. dxc3 d5 10. e5 dxc4 11. exf6 Qxf6 12. Ng5 Nc6 13. Rxh7 Bf5 14. Qh5 Rfe8+ 15. Kd1 Bg4+ 16. Qxg4 Qf1+ 17. Kd2 Rad8+ {0-1 Tiele,E-Betlem,H Hengelo U14 op 1996 (5)}) 6... Ne4 $19 {[%emt 0:00:56]} 7. Rg1 {[%emt 0:01:31]} d5 {[%emt 0:05:07]} 8. d3 {[%emt 0:00:52] Black is clearly better.} Ng5 {[%emt 0:01:31]} 9. d4 {[%emt 0:00:46]} (9. Nxg5 $17 {might work better.} Bxg5 10. Rh1) 9... Ne4 {[%emt 0:03:11]} 10. Bd3 {[%emt 0:02:22]} Bg4 {[%emt 0:00:26]} 11. Bf4 {[%emt 0:02:14]} (11. Nbd2 $17) 11... Nc6 {[%emt 0:01:26]} 12. c3 {[%emt 0:00:57]} Qd7 {[%emt 0:05:12]} 13. Rf1 {[%emt 0:01:48]} (13. Nbd2 $17 {is a better defense.}) 13... g5 {[%emt 0:06:36]} 14. Be3 {[%emt 0:02:48]} Nxg3 {[%emt 0:03:43]} 15. Rf2 {[%emt 0:02:46]} (15. Rg1 {only move.} Nf5 16. Bf2) 15... h5 {[%emt 0:07:22]} 16. Qd2 {[%emt 0:03:17]} Bxf3 {[%emt 0:05:56]} 17. Rxf3 {[%emt 0:01:15]} Ne4 {[%emt 0:05:00]} 18. Qc2 {[%emt 0:01:54]} Qg4 {[%emt 0:03:42]} 19. Be2 {[%emt 0:02:33]} (19. Bxe4 $142 dxe4 20. Rf1) 19... Qg2 {[%emt 0:05:28] ...g4 would be deadly.} 20. Rxf7 $2 {[%emt 0:02:14]} (20. Nd2) 20... Qh1+ $2 {[%emt 0:05:19]} (20... g4 $19 {is more deadly.} 21. Rxe7+ Kxe7) 21. Rf1 $17 {[%emt 0:00:27]} Qh4+ {[%emt 0:00:50]} 22. Kd1 {[%emt 0:04:16]} O-O-O {[%emt 0:07:42] ...Ng3 is the strong threat.} 23. Nd2 {[%emt 0:02:34] [#]} Ng3 {[%emt 0:04:02] Excellent horsemanship.} 24. Nf3 $2 {[%emt 0:04:41]} (24. Rg1) 24... Nxf1 $19 {[%emt 0:04:29]} 25. Bxf1 {[%emt 0:00:38]} Qg4 {[%emt 0:05:45]} 26. Be2 {[%emt 0:00:57][%cal Of3g5]} Qh3 {[%emt 0:02:23]} 27. Kd2 {[%emt 0:01:37]} Rhf8 $2 {[%emt 0:02:36]} ({Wrong is} 27... g4 $2 28. Ng5 Bxg5 29. Bxg5 $19) (27... Rdg8 $19 {has better winning chances. Strongly threatening ...Qd7.} 28. Ng1 Qg2) 28. Nxg5 $17 {[%emt 0:02:27][%cal Bf3g5,Bg5e6,Be6f4][%mdl 32]} Qf5 {[%emt 0:01:10]} (28... Bxg5 $15 29. Bxg5 Rde8) 29. Qxf5+ {[%emt 0:01:39]} Rxf5 {[%emt 0:00:26]} 30. Ne6 {[%emt 0:00:17]} Rg8 {[%emt 0:02:11]} 31. Rh1 {[%emt 0:01:52]} Kd7 {[%emt 0:02:51]} (31... Nd8 $15 {deserves consideration.} 32. Nf4 c6) 32. Nf4 $11 {[%emt 0:00:22]} Nd8 {[%emt 0:02:31] [#]} (32... Bg5 $11 33. Nxh5 (33. Nxd5 Ne7 $11) 33... Bxe3+ 34. Kxe3 Nxe5 35. dxe5 Rxe5+ 36. Kd3 Rf5) 33. Bxh5 {[%emt 0:02:54] White is more active.} (33. Bf1 $1 $16 {[%cal Rf1h3] Threatens to win with Bh3.} Kc6 34. Bd3 (34. Nxh5 Ne6 $11) 34... Rxf4 35. Bxf4) 33... Rh8 $2 {[%emt 0:01:49]} (33... c6 $1 $15 {stays ahead.}) 34. Bg4 $16 {[%emt 0:02:25][%mdl 64] Discovered Attack} Rxh1 {[%emt 0:00:13]} 35. Bxf5+ {[%emt 0:00:08]} Kc6 {[%emt 0:00:41]} 36. Kc2 {[%emt 0:02:11]} ({White should play} 36. Ng6 Rh7 37. c4 dxc4 38. d5+ {[%mdl 64] Discovered Attack} Kb5 39. Nxe7 Rxe7 40. e6 (40. Bxa7 $2 {loses.} Rxe5 41. Bg4 Rxd5+ 42. Kc1 Nc6 $19)) 36... Bg5 {[%emt 0:00:54] Hoping for ...Bxf4.} 37. Bg6 {[%emt 0:01:36]} (37. Nxd5 $1 $14 {keeps the upper hand.} Kxd5 38. Bxg5) 37... Bxf4 $17 {[%emt 0:00:42]} 38. Bxf4 {[%emt 0:00:33][%mdl 4096] Endgame KRN-KB} Kd7 {[%emt 0:00:31] Prevents Be8+.} 39. Bf5+ {[%emt 0:02:09]} Ne6 {[%emt 0:00:29]} 40. Bg5 {[%emt 0:01:38]} (40. Bd2 $17) 40... Rh5 $19 {[%emt 0:00:32]} 41. Bxe6+ {[%emt 0:30:07]} Kxe6 {[%emt 0:30:07] KR-KB} 42. Bf6 {[%emt 0:00:08]} Rh6 {[%emt 0:00:56]} 43. Kb3 {[%emt 0:00:54]} (43. b4 $17) 43... Kd7 {[%emt 0:00:26]} 44. Ka3 {[%emt 0:00:23]} Rh2 {[%emt 0:01:16]} ({Black should try} 44... Rh3 $19 45. Bg5 b6) 45. Kb3 {[%emt 0:00:22]} (45. b4 $17) 45... b5 {[%emt 0:00:47]} 46. Bg7 {[%emt 0:01:17]} a5 {[%emt 0:00:29][%cal Ba7a5,Ba5a4][%mdl 32]} 47. Bf8 {[%emt 0:00:23] Black is better.} a4+ {[%emt 0:00:58]} 48. Ka3 {[%emt 0:00:24]} Ke6 {[%emt 0:00:50]} 49. Bc5 {[%emt 0:00:41]} Rc2 {[%emt 0:00:27]} 50. Bb4 {Weighted Error Value: White=0.52/Black=0.58} 1/2-1/2

[Event "CZE-ch U10 Open 2023"]
[Site "Teplice"]
[Date "2023.03.15"]
[Round "6.5"]
[White "Vo, Daniel"]
[Black "Velim, Vojtech"]
[Result "0-1"]
[ECO "B18"]
[WhiteElo "1440"]
[BlackElo "1369"]
[Annotator "NA RC COMBH"]
[PlyCount "50"]
[EventDate "2023.03.09"]
[EventType "swiss"]
[EventCountry "CZE"]
[SourceTitle "playchess.com"]
[Source "ChessBase"]
[SourceQuality "1"]
[TimeControl "40/5400+30:1800+30"]

1. e4 {[%emt 0:00:03]} c6 {[%emt 0:00:08]} 2. d4 {[%emt 0:10:43]} d5 {[%emt 0:00:04]} 3. Nc3 {[%emt 0:00:12]} dxe4 {[%emt 0:00:06]} 4. Nxe4 {[%emt 0:00:08]} Bf5 {[%emt 0:00:09]} 5. Ng3 {[%emt 0:00:10]} Bg6 {[%emt 0:00:10]} 6. Nf3 {[%emt 0:00:12]} Nf6 {[%emt 0:02:01]} 7. h4 {[%emt 0:00:19]} Nh5 {[%emt 0:00:06]} 8. Nxh5 {[%emt 0:00:44]} Bxh5 {[%emt 0:00:10]} 9. Be3 {[%emt 0:00:36]} e6 {[%emt 0:00:28]} 10. Bc4 {[%emt 0:00:17]} Bd6 {[%emt 0:00:37]} 11. O-O {[%emt 0:00:46]} Qc7 {[%emt 0:01:04]} 12. Re1 {[%emt 0:00:40]} O-O {[%emt 0:08:22]} 13. c3 {[%emt 0:01:27]} Rd8 {[%emt 0:01:39]} 14. Qe2 {[%emt 0:01:41]} h6 {[%emt 0:05:59]} 15. Rad1 {[%emt 0:00:36]} Qe7 {[%emt 0:02:43]} 16. g3 {[%emt 0:04:42]} Nd7 {[%emt 0:05:46]} 17. Bb3 {[%emt 0:02:36]} Qf6 {[%emt 0:02:47]} 18. Kg2 {[%emt 0:02:01]} e5 {[%emt 0:02:10]} 19. Bc2 Qe7 {[%emt 0:13:56]} 20. Bc1 {[%emt 0:06:01]} Rf8 {[%emt 0:12:45]} 21. Qe3 {[%emt 0:05:13]} Rae8 {[%emt 0:02:44]} 22. Rd2 {[%emt 0:01:28]} e4 {[%emt 0:03:02]} 23. Bxe4 {[%emt 0:00:43]} f5 {[%emt 0:01:19]} 24. Bc2 {[%emt 0:01:57]} Bxf3+ {[%emt 0:00:32]} 25. Kxf3 {[%emt 0:00:21]} Qd8 {[%emt 0:00:45]} 0-1

[Event "CZE-ch U10 Open 2023"]
[Site "Teplice"]
[Date "2023.03.15"]
[Round "6.6"]
[White "Gernert, Tomas"]
[Black "Koutecky, Vaclav"]
[Result "1-0"]
[ECO "A22"]
[WhiteElo "1362"]
[BlackElo "2060"]
[Annotator "TA"]
[PlyCount "65"]
[EventDate "2023.03.09"]
[EventType "swiss"]
[EventCountry "CZE"]
[SourceTitle "playchess.com"]
[Source "ChessBase"]
[SourceQuality "1"]
[TimeControl "40/5400+30:1800+30"]

{[%evp 9,65,-28,-25,-88,-6,-8,0,-6,12,0,25,37,32,30,100,97,115,101,212,113,235,168,303,295,445,441,484,429,412,435,398,325,329,336,720,714,970,966,934,943,1096,951,997,993,982,974,971,957,1231,1221,1137,970,940,933,1611,1600,1554,1512]} 1. c4 {[%emt 0:00:04]} e5 {[%emt 0:00:06]} 2. Nc3 {[%emt 0:00:06]} Nf6 {[%emt 0:00:41]} 3. g3 {[%emt 0:00:09]} Nc6 {[%emt 0:00:33]} 4. Bg2 {[%emt 0:00:48]} Bc5 {[%emt 0:00:58]} 5. e4 {[%emt 0:00:58]} d6 {[%emt 0:00:44]} 6. Nge2 {[%emt 0:02:24] [#] A25: English Opening vs King's Indian with ...Nc6 but without early d3.} (6. h3 $11) 6... Bg4 {[%emt 0:02:23]} ({Black should try} 6... Ng4 $1 $17 {[%cal Rg4f2]} 7. O-O h5) 7. h3 $11 {[%emt 0:03:45]} Be6 {[%emt 0:05:52]} 8. d3 {[%emt 0:00:07] The position is equal.} h6 {[%emt 0:03:06]} 9. O-O {[%emt 0:02:23]} Qd7 {[%emt 0:01:44]} 10. Nd5 {[%emt 0:01:05] [#]} Bxh3 $146 {[%emt 0:03:30] ...Bg4 would be deadly.} ({Predecessor:} 10... O-O-O 11. a3 Bxh3 12. b4 Bxg2 13. Kxg2 Bd4 14. Nxd4 Nxd4 15. Be3 c6 16. Nc3 g5 {½-½ Brockmeyer,S-Bildat,E (981) Niedersachsen-ch op-C 2016 (4)}) 11. Nxc7+ $1 {[%emt 0:02:21][%mdl 64] [#] Double Attack} Ke7 {[%emt 0:25:28]} (11... Qxc7 $11 {keeps the balance.} 12. Bxh3 O-O) 12. Nxa8 $16 {[%emt 0:01:45][%cal Oa8c7]} Rxa8 {[%emt 0:01:26]} 13. Be3 {[%emt 0:01:52]} Bb6 {[%emt 0:06:14]} (13... Bg4 $16 14. Qd2 Bxe2 15. Qxe2 Nd4) 14. Rc1 {[%emt 0:05:32]} (14. Bxb6 $18 axb6 15. f3) 14... Rg8 {[%emt 0:14:50]} (14... Bg4 $16 {might work better.}) 15. d4 {[%emt 0:05:01][%cal Bd3d4,Bd4d5][%mdl 32]} g5 {[%emt 0:08:01]} (15... Bxg2 $142 16. Kxg2 Nxe4 17. dxe5 dxe5) 16. c5 $18 {[%emt 0:06:06]} Bc7 {[%emt 0:01:37]} (16... Bxg2 {is a better defense.} 17. Kxg2 dxc5) 17. d5 {[%emt 0:02:32]} Nb8 {[%emt 0:03:36]} 18. Qc2 {[%emt 0:02:42]} Na6 {[%emt 0:01:53]} 19. c6 {[%emt 0:07:27]} bxc6 {[%emt 0:02:19]} 20. Qxc6 {[%emt 0:00:50]} Bxg2 {[%emt 0:00:47]} 21. Kxg2 {[%emt 0:00:17]} Qc8 {[%emt 0:00:26]} (21... Nc5 22. Qxd7+ Kxd7 23. Bxc5 dxc5) 22. b4 {[%emt 0:00:34][%mdl 64] Deflection. White is clearly winning.} Nxb4 {[%emt 0:00:23]} 23. Qxc7+ {[%emt 0:00:09]} Qxc7 {[%emt 0:00:08]} 24. Rxc7+ {[%emt 0:00:05]} Nd7 {[%emt 0:00:17]} 25. Bd2 {[%emt 0:01:07]} Na6 {[%emt 0:00:22]} 26. Rxa7 {[%emt 0:00:10]} Nac5 {[%emt 0:00:08]} 27. f3 {[%emt 0:00:30]} g4 {[%emt 0:00:32]} 28. Bxh6 {[%emt 0:00:41]} gxf3+ {[%emt 0:00:11]} 29. Kxf3 {[%emt 0:01:19]} Rg6 {[%emt 0:00:20]} 30. Be3 {[%emt 0:00:36]} Rf6+ {[%emt 0:00:29]} 31. Kg2 {[%emt 0:00:22] Bg5 is the strong threat.} Rg6 {[%emt 0:01:03] Prevents Bg5+} 32. Bxc5 {[%emt 0:00:10]} dxc5 {[%emt 0:00:08]} 33. a4 {[%emt 0:01:29] Black got outplayed after the opening.   Weighted Error Value: White=0.30/Black=0.59} 1-0

[Event "CZE-ch U10 Open 2023"]
[Site "Teplice"]
[Date "2023.03.15"]
[Round "6.10"]
[White "Fadrny, Jonas"]
[Black "Bucek, Vit"]
[Result "1/2-1/2"]
[ECO "C55"]
[WhiteElo "1247"]
[BlackElo "1198"]
[Annotator "NA RC COMBH"]
[PlyCount "72"]
[EventDate "2023.03.09"]
[EventType "swiss"]
[EventCountry "CZE"]
[SourceTitle "playchess.com"]
[Source "ChessBase"]
[SourceQuality "1"]
[TimeControl "40/5400+30:1800+30"]

1. e4 {[%emt 0:00:04]} e5 {[%emt 0:00:04]} 2. Bc4 {[%emt 0:00:29]} Nc6 {[%emt 0:00:24]} 3. Nf3 {[%emt 0:00:32]} Nf6 {[%emt 0:00:19]} 4. d3 {[%emt 0:01:07]} Be7 {[%emt 0:00:12]} 5. O-O {[%emt 0:00:36]} O-O {[%emt 0:00:34]} 6. Nc3 {[%emt 0:00:43]} d6 {[%emt 0:00:31]} 7. Be3 {[%emt 0:00:50]} h6 {[%emt 0:00:19]} 8. Qd2 {[%emt 0:01:26]} Nh7 {[%emt 0:00:50]} 9. d4 {[%emt 0:03:30]} exd4 {[%emt 0:01:07]} 10. Nxd4 {[%emt 0:02:14]} Kh8 {[%emt 0:01:24]} 11. Nxc6 bxc6 {[%emt 0:00:29]} 12. Bd3 {[%emt 0:04:40]} f5 {[%emt 0:02:31]} 13. exf5 {[%emt 0:07:01]} Bxf5 {[%emt 0:03:56]} 14. Bxf5 {[%emt 0:00:22]} Rxf5 {[%emt 0:02:24]} 15. Qd3 {[%emt 0:02:18]} Rf8 {[%emt 0:02:34]} 16. Rfe1 {[%emt 0:01:33]} Bg5 {[%emt 0:02:11]} 17. Ne4 {[%emt 0:04:21]} d5 {[%emt 0:03:26]} 18. Nxg5 {[%emt 0:00:32]} Nxg5 {[%emt 0:00:57]} 19. Bxg5 {[%emt 0:00:13]} Qxg5 {[%emt 0:01:00]} 20. Qe3 {[%emt 0:01:03]} Qg6 {[%emt 0:03:38]} 21. Qd3 {[%emt 0:01:14]} Qf6 {[%emt 0:01:47]} 22. c3 {[%emt 0:05:22]} Qxf2+ {[%emt 0:01:16]} 23. Kh1 {[%emt 0:00:28]} Qxb2 {[%emt 0:00:49]} 24. Reb1 {[%emt 0:02:50]} Qf2 {[%emt 0:04:58]} 25. Rf1 {[%emt 0:00:33]} Qh4 {[%emt 0:04:19]} 26. Rxf8+ {[%emt 0:01:20]} Rxf8 {[%emt 0:01:58]} 27. Qa6 {[%emt 0:01:44]} Qf2 {[%emt 0:02:44]} 28. h3 {[%emt 0:00:32]} Qb2 {[%emt 0:01:41]} 29. Rf1 {[%emt 0:01:33]} Rxf1+ {[%emt 0:02:37]} 30. Qxf1 {[%emt 0:00:10]} Kg8 {[%emt 0:01:30]} 31. Qf5 {[%emt 0:01:08]} Qxc3 {[%emt 0:07:58]} 32. Qc8+ {[%emt 0:00:24]} Kh7 {[%emt 0:01:41]} 33. Qf5+ {[%emt 0:00:23]} Kg8 {[%emt 0:00:13]} 34. Qc8+ {[%emt 0:00:36]} Kf7 {[%emt 0:00:09]} 35. Qxc7+ {[%emt 0:00:19]} Kg6 {[%emt 0:00:17]} 36. Qxa7 {[%emt 0:00:33]} Qa1+ {[%emt 0:02:45]} 1/2-1/2